Cogmind - Beta 12 @@@ ROGUE MODE // 2023.10.29 @ 13:47:54 Player: gallo Result: Self-destructed Performance ------------- Evolutions (1) 500 Regions Visited (3) 600 Robots Destroyed (9) 45 Value Destroyed (294) 294 Prototype IDs (0) 0 Alien Tech Used (0) 0 Bonus (0) 0 TOTAL SCORE: 1439 Bonus ------- None Cogmind --------- Core Integrity 362/400 Matter 170/300 Energy 100/100 System Corruption 0% Temperature Cool (0) Movement Walking (120) Location -9/Mines Parts ------- > --- POWER (1) -------- (None) > --- PROPULSION (3) --- Aluminum Leg > --- UTILITY (3) ------ Small Storage Unit Structural Scanner > --- WEAPON (2) ------- Small Laser Heavy Assault Rifle > --- INVENTORY (8) ---- Compact Wheel Huge Storage Unit Peak State ------------ > --- POWER ------------ Light Ion Engine > --- PROPULSION ------- Aluminum Leg Aluminum Leg Aluminum Leg > --- UTILITY ---------- Heat Sink Small Storage Unit Structural Scanner > --- WEAPON ----------- Small Laser Plasma Cutter > --- INVENTORY -------- Compact Wheel Huge Storage Unit [Rating: 10] Favorites ----------- Power Ion Engine Engine Ion Engine Propulsion Aluminum Leg Leg Aluminum Leg Wheel Compact Wheel Utility Small Storage Unit Device Structural Scanner Storage Small Storage Unit Weapon Small Laser Energy Gun Small Laser Ballistic Gun Assault Rifle Launcher Grenade Launcher Special Weapon Plasma Cutter Build | -11 -10 -9 -9 ------- Run | Jun Mat Mat Min Slots Evolved 2 | . . 2 . Power . | . . . . Propulsion 1 | . . 1 . Utility 1 | . . 1 . Weapon . | . . . . Parts Attached 19 | 7 6 6 . Power 2 | 1 . 1 . Engine 2 | 1 . 1 . Core . | . . . . Reactor . | . . . . Propulsion 5 | 3 1 1 . Treads . | . . . . Leg 4 | 2 1 1 . Wheel 1 | 1 . . . Hover . | . . . . Flight . | . . . . Utility 5 | 1 2 2 . Device 2 | . . 2 . Storage 3 | 1 2 . . Processor . | . . . . Hackware . | . . . . Protection . | . . . . Artifact . | . . . . Weapon 7 | 2 3 2 . Energy Gun 1 | . 1 . . Energy Cannon . | . . . . Ballistic Gun 4 | 2 1 1 . Ballistic Cannon . | . . . . Launcher 1 | . 1 . . Special Weapon 1 | . . 1 . Impact Weapon . | . . . . Slashing Weapon . | . . . . Piercing Weapon . | . . . . Special Melee Weapon . | . . . . Unidentified Prototypes . | . . . . Parts Lost 10 | . 4 6 . Power 2 | . 1 1 . Propulsion 3 | . 1 2 . Utility 1 | . . 1 . Weapon 4 | . 2 2 . Highest Loss Streak 5 | . 4 5 . To Critical Strikes . | . . . . Average Slot Usage (%) 74 | . 76 80 55 Engine 5 | . 8 2 . Leg 24 | . 24 30 11 Device 7 | . . 15 11 Storage 13 | . 16 11 11 Energy Gun 7 | . 3 11 11 Ballistic Gun 12 | . 16 8 11 Launcher 2 | . 5 . . Naked Turns . | . . . . Heaviest Build 14 | 13 14 12 10 Greatest Support 30 | 20 20 30 10 Greatest Overweight (x) . | . . . . Average Overweight (x) . | . . . . Largest Inventory Capacity 25 | 8 25 8 8 Average Capacity 8 | 6 10 8 8 Most Carried 4 | 1 4 4 2 Average Carried 2 | . 2 2 2 Final Capacity 8 | 8 8 8 8 Final Carried 3 | 1 3 2 2 Class Distribution -------------------- 91% | Mutant 8% | Scavenger-Mutant Dominant Class ---------------- Mutant | -10/Materials Mutant | -9/Materials Mutant | -9/Mines Resources | -11 -10 -9 -9 ----------- Run | Jun Mat Mat Min Matter Collected 352 | 191 88 73 . Remotely . | . . . . Salvage Created 253 | . 131 122 . Parts 15 | . 6 9 . Haulers Intercepted . | . . . . Recyclers Shooed . | . . . . Parts Field Recycled . | . . . . Retrieved Matter . | . . . . Parts Self-Destructed . | . . . . Prevented . | . . . . Kills | -11 -10 -9 -9 ------- Run | Jun Mat Mat Min Combat Hostiles Destroyed 8 | . 6 2 . Guns 4 | . 2 2 . AOE 4 | . 4 . . Classes Destroyed 4 | . 2 2 . Watcher 1 | . . 1 . Swarmer 2 | . 2 . . Grunt 5 | . 4 1 . Sentry 1 | . . 1 . Best Kill Streak 2 | . 2 2 . Combat Bots Only 2 | . 2 1 . Max Kills in Single Turn 2 | . 2 1 . Gunslinging . | . . . . Exploded 2 | . 2 . . Melee . | . . . . Uniques/NPCs Destroyed . | . . . . Combat | -11 -10 -9 -9 -------- Run | Jun Mat Mat Min Damage Taken 856 | . 564 292 . Core 149 | . 111 38 . Absorbed by Shields . | . . . . Core Remaining (%) 77 | 100 55 . . Volleys Fired 49 | . 26 23 . Largest 2 | . 2 2 . Hottest 63 | . 50 63 . Shots Fired 69 | . 38 31 . Gun 62 | . 31 31 . Cannon . | . . . . Launcher 7 | . 7 . . Special . | . . . . Kinetic 39 | . 31 8 . Thermal 23 | . . 23 . Explosive 7 | . 7 . . Electromagnetic . | . . . . Robot Hit Streak 6 | . 5 6 . Robot Miss Streak 5 | . 5 2 . Penetration Max . | . . . . Secondary Targets . | . . . . Shots Hit Robots 39 | . 18 21 . Core Hits 18 | . 11 7 . Critical Kills . | . . . . Critical Parts Destroyed . | . . . . Critical Strikes . | . . . . Melee Attacks . | . . . . Impact . | . . . . Slashing . | . . . . Piercing . | . . . . Sneak Attacks . | . . . . Combat Hostiles . | . . . . Follow-up Attacks . | . . . . Damage Inflicted 827 | . 575 246 6 Guns 407 | . 161 246 . Cannons . | . . . . Explosions 410 | . 410 . . Melee . | . . . . Ramming 10 | . 4 . 6 Kinetic 254 | . 161 93 . Thermal 249 | . 96 153 . Explosive 314 | . 314 . . Electromagnetic . | . . . . Impact . | . . . . Slashing . | . . . . Piercing . | . . . . Highest Corruption . | . . . . Average Corruption . | . . . . Corruption Purged . | . . . . Corruption Blocked . | . . . . Overload Shots . | . . . . Overflow Damage 69 | . 69 . . Projectiles . | . . . . Explosions 69 | . 69 . . Melee . | . . . . Knockbacks . | . . . . Impact . | . . . . Kinetic . | . . . . Secondary . | . . . . Self-Inflicted Damage 153 | . 153 . . Shots 4 | . 4 . . Rammed . | . . . . Targets Rammed 4 | . 2 . 2 Kicked 4 | . 2 . 2 Crushed . | . . . . Highest Temperature 27 | . 27 3 . Average Temperature 10 | . 11 2 . Received Heat Transfer 261 | . 177 84 . Siege Activations . | . . . . Robots Corrupted . | . . . . Combat Hostiles . | . . . . Parts Fried . | . . . . Impact Corruptions . | . . . . Robots Melted . | . . . . Combat Hostiles . | . . . . Parts Melted . | . . . . Heat Transferred 400 | . 50 350 . Parts Sabotaged . | . . . . Parts Stolen . | . . . . Parts Stripped . | . . . . Power Chain Reactions . | . . . . Missiles Intercepted . | . . . . Alert | -11 -10 -9 -9 ------- Run | Jun Mat Mat Min Peak Influence 299 | . 299 193 59 Initial 126 | . . 126 59 Average 133 | . 173 150 59 Maximum Alert Level 1 | . 1 . . Low Security (%) 77 | 100 49 100 100 Level 1 22 | . 50 . . Level 2 . | . . . . Level 3 . | . . . . Level 4 . | . . . . Level 5 . | . . . . High Security . | . . . . Max Security . | . . . . Squads Dispatched 1 | . 1 . . Investigation . | . . . . Extermination . | . . . . Reinforcement 1 | . 1 . . Assault . | . . . . Garrison . | . . . . Intercept . | . . . . Searches Triggered . | . . . . Construction Impeded . | . . . . Haulers Reinforced . | . . . . Active Scanning Responses . | . . . . Cargo Convoy Interrupts . | . . . . Stealth | -11 -10 -9 -9 --------- Run | Jun Mat Mat Min Distress Signals 4 | . 2 2 . Communications Jammed . | . . . . Distress Signals . | . . . . Times Spotted 17 | . 11 6 . Peak Tracking Total 4 | . 4 4 . Tactical Retreats 3 | . 3 . . Traps | -11 -10 -9 -9 ------- Run | Jun Mat Mat Min Traps Triggered . | . . . . Indirectly . | . . . . Trap Hack Attempts . | . . . . Triggered . | . . . . Disarmed . | . . . . Reprogrammed . | . . . . Reused . | . . . . Traps Extracted . | . . . . Installed . | . . . . Triggered . | . . . . Machines | -11 -10 -9 -9 ---------- Run | Jun Mat Mat Min Machines Disabled 3 | . 3 . . Max in Single Turn 1 | . 1 . . Machines Repaired . | . . . . Machines Sabotaged . | . . . . Overloaded Fab Kills . | . . . . Hacking | -11 -10 -9 -9 --------- Run | Jun Mat Mat Min Machines Accessed . | . . . . Terminals . | . . . . Fabricators . | . . . . Repair Stations . | . . . . Recycling Units . | . . . . Scanalyzers . | . . . . Garrison Access . | . . . . Total Hacks . | . . . . Successful . | . . . . Failed . | . . . . Catastrophic . | . . . . Database Lockouts . | . . . . Manual . | . . . . Terminals . | . . . . Fabricators . | . . . . Repair Stations . | . . . . Recycling Units . | . . . . Scanalyzers . | . . . . Garrison Access . | . . . . Terminal Hacks . | . . . . Fabricator Hacks . | . . . . Repair Station Hacks . | . . . . Recycling Unit Hacks . | . . . . Scanalyzer . | . . . . Garrison Access Hacks . | . . . . Unauthorized Hacks . | . . . . Terminals . | . . . . Fabricators . | . . . . Repair Stations . | . . . . Recycling Units . | . . . . Scanalyzers . | . . . . Garrison Access . | . . . . Data Cores Recovered . | . . . . Used . | . . . . Hacking Detections . | . . . . Full Trace Events . | . . . . Feedback Events . | . . . . Feedback Blocked . | . . . . Robot Schematics Acquired . | . . . . Robots Built . | . . . . Authchips . | . . . . Time . | . . . . Total Robot Build Rating . | . . . . Part Schematics Acquired . | . . . . Parts Built . | . . . . Authchips . | . . . . Time . | . . . . Total Part Build Rating . | . . . . Parts Repaired . | . . . . Time . | . . . . Parts Recycled . | . . . . Recycled Matter . | . . . . Retrieved Matter . | . . . . Retrieved Components . | . . . . Parts Scanalyzed . | . . . . Part Schematics Acquired . | . . . . Parts Damaged . | . . . . Bothacking | -11 -10 -9 -9 ------------ Run | Jun Mat Mat Min Used RIF Installer . | . . . . Robots Hacked . | . . . . Non-combat . | . . . . Combat . | . . . . Robot Hacks Applied . | . . . . Relay Couplers Released . | . . . . Fabnet Peak Effective % . | . . . . Robots Rewired . | . . . . Allies Hacked . | . . . . Hacks Repelled . | . . . . Allies | -11 -10 -9 -9 -------- Run | Jun Mat Mat Min Total Allies . | . . . . Largest Group . | . . . . Highest-Rated Group . | . . . . Highest-Rated Ally . | . . . . Total Orders . | . . . . Ally Attacks . | . . . . Total Damage . | . . . . Kills . | . . . . Allies Corrupted . | . . . . Allies Melted . | . . . . Intel | -11 -10 -9 -9 ------- Run | Jun Mat Mat Min Robot Analysis Total . | . . . . Derelict Logs Recovered . | . . . . Drone Launches . | . . . . Drone Recoveries . | . . . . Exploration | -11 -10 -9 -9 ------------- Run | Jun Mat Mat Min Turns Passed 582 | 59 257 189 77 Spaces Moved 353 | 47 149 95 62 Core 11 | 11 . . . Treads . | . . . . Legs 340 | 34 149 95 62 Wheels 2 | 2 . . . Hover . | . . . . Flight . | . . . . Fastest Speed 50 | 50 120 120 120 Average Speed 117 | 102 120 120 120 Slowest Speed 120 | 120 120 120 120 Overloaded Moves . | . . . . Propulsion Burnouts . | . . . . Robots Hopped . | . . . . Cave-ins Triggered . | . . . . Exploration Rate (%) 14 | 3 31 10 12 Regions Visited 3 Branch Regions 1 Pre-discovered Areas . | . . . . Known Exits Taken . | . . . . Unknown Exits Taken 3 | 1 1 1 . Scrap Searched . | . . . . Spaces Dug . | . . . . Terrain Destroyed 68 | . 68 . . Melee . | . . . . Projectile . | . . . . AOE 68 | . 68 . . Terrain Rammed . | . . . . Walls Destroyed . | . . . . Machines Disabled . | . . . . Actions | -11 -10 -9 -9 --------- Run | Jun Mat Mat Min Total 447 | 54 191 138 64 Wait 15 | . 3 12 . Move 350 | 46 148 94 62 Hop . | . . . . Pick Up 7 | . 4 3 . Fast Attach 11 | 7 2 2 . Attach 7 | . 3 4 . Detach 2 | 1 1 . . Swap 1 | . 1 . . Drop 1 | . 1 . . Fire 49 | . 26 23 . Melee . | . . . . Ram . | . . . . Kick 4 | . 2 . 2 Crush . | . . . . Escape Stasis . | . . . . Rewire . | . . . . Trap . | . . . . Miscellaneous . | . . . . Route ------- -11/Junkyard -10/Materials (discovered 2 exits: [*Mat] / [*Min]) -9/Materials -9/Mines History --------- Turn | Location | Event 34 | -11/Junkyard | Discovered new exit (range 15) 60 | -11/Junkyard | Entered Materials 168 | -10/Materials | Discovered new exit (range 8) 251 | -10/Materials | Lost 4 parts (1p1n2w) 260 | -10/Materials | Discovered new exit (range 13) 317 | -10/Materials | Entered another Materials area 317 | -9/Materials | Evolved 2 slots: Propulsion x1, Utility x1 320 | -9/Materials | Build established: Mutant 389 | -9/Materials | Discovered new exit (range 13) 506 | -9/Materials | Entered Mines 525 | -9/Mines | Lost 5 parts (1p2n1u1w) 534 | -9/Mines | Met a Derelict bent on vengeance 583 | -9/Mines | Self-destructed Last Messages --------------- 00483_ Acquired Hvy. Assault Rifle. 00487_ R-06 Scavenger collects Heat Sink. 00488_ G-34 Mercenary destroyed. 00489_ Aluminum Leg destroyed. 00491_ K-01 Serf collects debris. 00491_ Destroyed Melee Analysis Suite. 00494_ Aluminum Leg destroyed. 00494_ Heat Sink destroyed. 00494_ Lgt. Ion Engine destroyed. 00496_ K-01 Serf collects debris. LOCATION=UNKNOWN GOAL=ESCAPE Something is scanning the area. 00507_ K-01 Serf collects debris. 00517_ K-01 Serf cleans the Plasma Injector. 00520_ K-01 Serf collects debris. 00521_ K-01 Serf cleans the Plasma Injector. 00526_ K-01 Serf collects debris. 00527_ Kicked K-01 Serf. 00529_ K-01 Serf collects debris. Map ----- +----------------------------------------------------+ | ??????????????????????????????????????????? | | ??????????????????????????????????????????? | | ??????????????????????????????????????????? | | ??????????????????????????????????????????? | | ??????????????????????????????????????????? | | ????????#######???????????????????????????? | | ???????#########??????????????????????????? | | ???????### ####?????????????????????????? | | ???????## ####????????????????????????? | | ######### ###????????????????????????? | | ########## ##????????????????????????? | | ## ### #######???????????????????? | | ## ### #######???????????????????? | | ## ## #### ##???????????????????? | | ## ## #### ???????????????????? | | ## ### #####? ?????????????????????? | | ## ### ###### ????????????????????? | | ## """ ### ##??## ##????????????????????? | | ## """ ### ##??##k ##????????????????????? | | ## """ ### ##??## ##????????????????????? | | ## ##?### ##????????????????????? | | ## ### ##?### ##????????????????????? | | ########### ##?## ##????????????????????? | | ########### ##### ##????????????????????? | | ?????????## ##### ###????????????????????? | | ?????????## @##?????????????????????? | | ?????????######## ##?????????????????????? | | ?????????######## ##?????????????????????? | | ???????????????## ##?????????????????????? | | ???????????????## ????????????????????? | | ???????????????## ###????????????????????? | | ??????????????? ###????????????????????? | | ???????????????? #?????????????????????? | | ?????????????? ??????????????????????? | | ?????????????? ## ??????????????????????? | | ?????????????? ### ??????????????????????? | | ???????????????#### ?????????????????????? | | ?????????????????### ????????????????????? | | ??????????????????####????????????????????? | | ???????????????????###????????????????????? | | ??????????????????????????????????????????? | | ??????????????????????????????????????????? | | ??????????????????????????????????????????? | | ??????????????????????????????????????????? | | ??????????????????????????????????????????? | | ??????????????????????????????????????????? | | ??????????????????????????????????????????? | | | | | | | +----------------------------------------------------+ Best States ------------- Heat Dissipation 38 Energy Generation 10 Energy Capacity 250 Matter Stores 221 Matter Capacity 300 Sight Range 16 Terrain Scan Density 10 Evasion (%) 55 Item Schematics ----------------- None Robot Schematics ------------------ None Fabricated ------------ Nothing Alien Tech Used ----------------- None Achievements -------------- None Challenges ------------ None Game ------ Seed ScrapBiomechanicalCharge Manual? 0 Play Time 00:05:30 Cumulative 2.9 hours Start 2023.10.29 @ 13:31:00 End 2023.10.29 @ 13:47:54 Sessions 3 Manual Loads 0 Difficulty Rogue Special Mode None Game No. 11 Rogue 11 Adventurer 0 Explorer 0 Win Type - Total 0 Types 0/0/0/0/0/0/0/0/0 Lore% 6 Gallery% 8 Achievement% 6 Wizard Run 0 Options --------- ASCII 0 Keyboard 1 Movement Arrows Keybinds 0 Fullscreen 1 Font 18/Terminus Map View 76x50 Tactical HUD 1 Map Filters NONE Filters NONE Steam 1 RUN: 0a73349c-bab6-4263-a523-741b1e42254c